[Event "VII Cape Verde Championship 2023"]
[Site "Ponta do Sol"]
[Date "2023.12.04"]
[Round "2.4"]
[White "Vaz, Jose Carlos"]
[Black "Barros, Luis"]
[Result "0-1"]
[ECO "B51"]
[WhiteElo "1833"]
[BlackElo "1656"]
[Annotator "NA"]
[PlyCount "106"]
[EventDate "2023.11.30"]
[EventType "tourn"]
[EventCountry "KAP"]
[SourceTitle "playchess.com"]
[Source "ChessBase"]
[SourceQuality "1"]
[TimeControl "40/5400+30:1800+30"]

1. e4 {[%emt 0:00:22]} c5 {[%emt 0:00:12]} 2. Nf3 {[%emt 0:01:14]} d6 {[%emt 0:00:12]} 3. Bb5+ {[%emt 0:01:43]} Nc6 {[%emt 0:02:04]} 4. Bxc6+ {[%emt 0:01:48]} bxc6 {[%emt 0:00:20]} 5. c4 {[%emt 0:00:25]} Be6 {[%emt 0:03:37]} 6. d3 {[%emt 0:01:36]} g6 {[%emt 0:02:05]} 7. Ng5 {[%emt 0:04:13]} Bg7 {[%emt 0:01:05]} 8. Nxe6 {[%emt 0:01:03]} fxe6 {[%emt 0:00:16]} 9. Qf3 {[%emt 0:00:52]} Qd7 {[%emt 0:01:52]} 10. O-O {[%emt 0:01:41]} Nf6 {[%emt 0:01:24]} 11. e5 {[%emt 0:01:28]} dxe5 {[%emt 1:22:53]} 12. Nc3 O-O {[%emt 0:00:00]} 13. Qe2 {[%emt 0:00:58]} Qd6 {[%emt 0:00:00]} 14. Be3 {[%emt 0:02:45]} e4 {[%emt 0:00:00]} 15. dxe4 {[%emt 0:01:22]} Qe5 {[%emt 0:00:00]} 16. f4 {[%emt 0:01:06]} Qh5 {[%emt 0:00:00]} 17. Qxh5 {[%emt 0:00:30]} Nxh5 {[%emt 0:00:00]} 18. e5 {[%emt 0:00:12]} Bh6 {[%emt 0:00:00]} 19. g3 {[%emt 0:01:02]} Rab8 {[%emt 0:00:00]} 20. b3 {[%emt 0:00:42]} Rb7 {[%emt 0:00:00]} 21. Rad1 {[%emt 0:00:45]} Ng7 {[%emt 0:00:00]} 22. g4 {[%emt 0:00:22]} Ne8 {[%emt 0:00:00]} 23. g5 {[%emt 0:00:43]} Bg7 {[%emt 0:00:00]} 24. Bxc5 {[%emt 0:00:34]} Bh8 {[%emt 0:00:00]} 25. Rd4 {[%emt 0:07:35]} Ng7 {[%emt 0:00:00]} 26. Rfd1 {[%emt 0:01:22]} Nf5 {[%emt 0:00:00]} 27. Rd7 {[%emt 0:00:54]} Rxd7 {[%emt 0:00:00]} 28. Rxd7 {[%emt 0:00:14]} h6 {[%emt 0:00:00]} 29. Ne4 {[%emt 0:02:19]} Bg7 {[%emt 0:00:00]} 30. Bxa7 {[%emt 0:05:18]} Nh4 {[%emt 0:00:00]} 31. Be3 {[%emt 0:00:46]} Nf3+ {[%emt 0:00:00]} 32. Kf2 {[%emt 0:02:04]} Nxe5 {[%emt 0:00:00]} 33. Rxe7 {[%emt 0:02:10]} Nd3+ {[%emt 0:00:00]} 34. Kg3 {[%emt 0:01:26]} e5 {[%emt 0:00:00]} 35. Nf6+ {[%emt 0:02:41]} Bxf6 {[%emt 0:00:00]} 36. gxf6 {[%emt 0:00:15]} exf4+ {[%emt 0:00:00]} 37. Bxf4 {[%emt 0:00:38]} g5 {[%emt 0:00:00]} 38. f7+ {[%emt 0:00:14]} Rxf7 {[%emt 0:00:00]} 39. Rxf7 {[%emt 0:00:14]} Kxf7 {[%emt 0:00:00]} 40. Bd2 {[%emt 0:01:22]} Kg6 {[%emt 0:00:00]} 41. b4 {[%emt 0:33:50]} Nb2 {[%emt 0:03:14]} 42. c5 {[%emt 0:00:25]} h5 {[%emt 0:01:54]} 43. b5 {[%emt 0:02:37]} cxb5 {[%emt 0:02:25]} 44. c6 {[%emt 0:00:56]} Nc4 {[%emt 0:00:27]} 45. c7 {[%emt 0:01:23]} Nd6 {[%emt 0:00:29]} 46. Bb4 {[%emt 0:00:25]} Nc8 {[%emt 0:00:36]} 47. Kf3 {[%emt 0:00:45]} Kf5 {[%emt 0:00:26]} 48. Ke3 {[%emt 0:00:18]} Ke5 {[%emt 0:00:51]} 49. Kd3 {[%emt 0:01:24]} Kd5 {[%emt 0:00:57]} 50. Bd2 {[%emt 0:00:11]} g4 {[%emt 0:02:36]} 51. Kc3 {[%emt 0:00:06]} h4 {[%emt 0:01:51]} 52. Bf4 {[%emt 0:02:06]} Ke4 {[%emt 0:00:34]} 53. Bd2 {[%emt 0:01:54]} g3 {[%emt 0:00:28]} 0-1

[Event "VII Cape Verde Championship 2023"]
[Site "Ponta do Sol"]
[Date "2023.12.04"]
[Round "2.5"]
[White "Rodriguez Guevara, Celia M."]
[Black "Santos, Kelim Morais"]
[Result "1-0"]
[ECO "D02"]
[WhiteElo "1746"]
[BlackElo "1436"]
[Annotator "NA"]
[PlyCount "47"]
[EventDate "2023.11.30"]
[EventType "tourn"]
[EventCountry "KAP"]
[SourceTitle "playchess.com"]
[Source "ChessBase"]
[SourceQuality "1"]
[TimeControl "40/5400+30:1800+30"]

1. d4 {[%emt 0:02:22]} g6 {[%emt 0:28:18]} 2. Nf3 {[%emt 0:01:11]} d5 {[%emt 0:00:32]} 3. Bf4 {[%emt 0:00:12]} Nc6 {[%emt 0:00:26]} 4. e3 {[%emt 0:00:58]} Bg7 {[%emt 0:00:20]} 5. Be2 {[%emt 0:00:55]} Bg4 {[%emt 0:00:54]} 6. Nc3 {[%emt 0:01:52]} e6 {[%emt 0:05:09]} 7. h3 {[%emt 0:11:33]} Bxf3 {[%emt 0:01:00]} 8. Bxf3 {[%emt 0:00:37]} Nge7 {[%emt 0:00:11]} 9. Qd2 {[%emt 0:04:23]} Qd7 {[%emt 0:07:44]} 10. O-O-O {[%emt 0:06:08]} O-O {[%emt 0:11:23]} 11. g4 {[%emt 0:00:50]} Rad8 {[%emt 0:02:22]} 12. h4 {[%emt 0:08:46]} e5 {[%emt 0:02:12]} 13. dxe5 {[%emt 0:03:39]} Nxe5 {[%emt 0:04:47]} 14. Bg2 {[%emt 0:20:14]} Nc4 {[%emt 0:05:18]} 15. Qd3 {[%emt 0:07:11]} c6 {[%emt 0:11:38]} 16. Bh3 {[%emt 0:00:44]} f5 {[%emt 0:00:19]} 17. Rdg1 {[%emt 0:03:13]} Ne5 {[%emt 0:01:07]} 18. Qe2 {[%emt 0:01:45]} d4 {[%emt 0:02:17]} 19. exd4 {[%emt 0:05:24]} Qxd4 {[%emt 0:00:36]} 20. Bg5 {[%emt 0:02:39]} Qc5 {[%emt 0:06:21]} 21. gxf5 {[%emt 0:02:34]} Rde8 {[%emt 0:02:46]} 22. f6 {[%emt 0:03:03]} Bxf6 {[%emt 0:02:03]} 23. Bxf6 {[%emt 0:00:19]} Rxf6 {[%emt 0:01:23]} 24. Ne4 {[%emt 0:00:05]} 1-0

[Event "VII Cape Verde Championship 2023"]
[Site "Ponta do Sol"]
[Date "2023.12.05"]
[Round "3.1"]
[White "Santos, Kelim Morais"]
[Black "Alho, Diogo"]
[Result "0-1"]
[ECO "A32"]
[WhiteElo "1436"]
[BlackElo "2233"]
[Annotator "RC"]
[PlyCount "56"]
[EventDate "2023.11.30"]
[EventType "tourn"]
[EventCountry "KAP"]
[SourceTitle "playchess.com"]
[Source "ChessBase"]
[SourceQuality "1"]
[TimeControl "40/5400+30:1800+30"]

1. c4 {[%emt 0:06:40]} e6 {[%emt 0:02:34]} 2. d4 {[%emt 0:00:12]} Nf6 {[%emt 0:00:12]} 3. Nc3 {[%emt 0:00:10]} c5 {[%emt 0:00:19]} 4. Nf3 {[%emt 0:00:54]} cxd4 {[%emt 0:09:33]} 5. Nxd4 {[%emt 0:00:58]} a6 {[%emt 0:00:06]} 6. a4 {[%emt 0:01:37]} Bb4 {[%emt 0:02:44]} 7. Bd2 {[%emt 0:03:12]} Nc6 {[%emt 0:00:51]} 8. e3 {[%emt 0:03:22]} O-O {[%emt 0:01:28]} 9. Nxc6 {[%emt 0:03:03]} bxc6 {[%emt 0:00:10]} 10. Nb1 {[%emt 0:01:22]} Rb8 {[%emt 0:03:37]} 11. Bd3 {[%emt 0:01:14]} d5 {[%emt 0:04:48]} 12. Bxb4 {[%emt 0:00:56]} Rxb4 {[%emt 0:00:07]} 13. b3 {[%emt 0:00:45]} Qb6 {[%emt 0:04:23]} 14. O-O {[%emt 0:00:47]} Rxb3 {[%emt 0:00:55]} 15. Re1 {[%emt 0:03:03]} Rd8 {[%emt 0:01:35]} 16. Ra3 {[%emt 0:03:26]} dxc4 {[%emt 0:02:10]} 17. Rxb3 {[%emt 0:01:27]} cxb3 {[%emt 0:00:47]} 18. Qe2 {[%emt 0:00:24]} Qb4 {[%emt 0:00:35]} 19. Kf1 {[%emt 0:00:18]} a5 {[%emt 0:03:09]} 20. Rd1 {[%emt 0:00:19]} Bd7 {[%emt 0:00:44]} 21. Nd2 {[%emt 0:04:02]} c5 {[%emt 0:02:28]} 22. Nc4 {[%emt 0:01:09]} Bxa4 {[%emt 0:01:51]} 23. Nb2 {[%emt 0:03:20]} g6 {[%emt 0:05:16]} 24. Qe1 {[%emt 0:08:04]} Bc6 {[%emt 0:12:04]} 25. Qxb4 {[%emt 0:00:46]} cxb4 {[%emt 0:00:06]} 26. f3 {[%emt 0:01:22]} a4 {[%emt 0:00:50]} 27. Ke2 {[%emt 0:02:06]} Nd5 {[%emt 0:00:56]} 28. Kf2 {[%emt 0:12:02]} Nc3 {[%emt 0:00:48]} 0-1

[Event "VII Cape Verde Championship 2023"]
[Site "Ponta do Sol"]
[Date "2023.12.05"]
[Round "3.2"]
[White "Barros, Luis"]
[Black "Rodriguez Guevara, Celia M."]
[Result "0-1"]
[ECO "B12"]
[WhiteElo "1656"]
[BlackElo "1746"]
[Annotator "NA RC"]
[PlyCount "120"]
[EventDate "2023.11.30"]
[EventType "tourn"]
[EventCountry "KAP"]
[SourceTitle "playchess.com"]
[Source "ChessBase"]
[SourceQuality "1"]
[TimeControl "40/5400+30:1800+30"]

1. e4 {[%emt 0:00:03]} c6 {[%emt 0:05:44]} 2. d4 {[%emt 0:00:54]} d5 {[%emt 0:00:51]} 3. e5 {[%emt 0:00:56]} Bf5 {[%emt 0:00:28]} 4. Bd3 {[%emt 0:00:33]} Bxd3 {[%emt 0:03:21]} 5. Qxd3 {[%emt 0:00:14]} e6 {[%emt 0:00:36]} 6. Nf3 {[%emt 0:01:44]} Ne7 {[%emt 0:00:44]} 7. Nbd2 {[%emt 0:01:35]} Nd7 {[%emt 0:00:44]} 8. c4 {[%emt 0:01:28]} b6 {[%emt 0:02:08]} 9. b4 {[%emt 0:00:46]} c5 {[%emt 0:03:53]} 10. cxd5 {[%emt 0:03:12]} Nxd5 {[%emt 0:00:44]} 11. bxc5 {[%emt 0:03:22]} bxc5 {[%emt 0:00:35]} 12. Ba3 {[%emt 0:02:48]} Qa5 {[%emt 0:17:20]} 13. O-O {[%emt 0:00:47]} cxd4 {[%emt 0:14:54]} 14. Bxf8 {[%emt 0:01:14]} Kxf8 {[%emt 0:02:31]} 15. Nc4 {[%emt 0:00:36]} Qc3 {[%emt 0:02:13]} 16. Qxd4 {[%emt 0:02:00]} Qxd4 {[%emt 0:02:21]} 17. Nxd4 {[%emt 0:00:09]} N5b6 {[%emt 0:01:56]} 18. Nxb6 {[%emt 0:01:18]} axb6 {[%emt 0:03:28]} 19. f4 {[%emt 0:00:29]} g6 {[%emt 0:02:31]} 20. Rfc1 {[%emt 0:00:37]} Nc5 {[%emt 0:01:02]} 21. Rab1 {[%emt 0:08:09]} Ra6 {[%emt 0:05:03]} 22. Rc2 {[%emt 0:07:31]} Kg7 {[%emt 0:00:59]} 23. Rcb2 {[%emt 0:01:41]} Rd8 {[%emt 0:07:54]} 24. Nc6 {[%emt 0:01:22]} Rc8 {[%emt 0:01:02]} 25. Nd4 {[%emt 0:02:27]} Ra4 {[%emt 0:01:45]} 26. Rd2 {[%emt 0:01:45]} Ne4 {[%emt 0:00:52]} 27. Rd3 {[%emt 0:02:38]} Rxa2 {[%emt 0:00:22]} 28. Re1 {[%emt 0:02:35]} Nc5 {[%emt 0:01:21]} 29. Rc3 {[%emt 0:01:47]} Rd8 {[%emt 0:01:41]} 30. Rd1 {[%emt 0:07:56]} Ra4 {[%emt 0:01:09]} 31. Rxc5 {[%emt 0:03:15]} Rdxd4 {[%emt 0:09:19]} 32. Rxd4 {[%emt 0:01:02]} Rxd4 {[%emt 0:00:03]} 33. Rb5 {[%emt 0:00:14]} Rxf4 {[%emt 0:00:11]} 34. Rxb6 {[%emt 0:01:01]} g5 {[%emt 0:00:14]} 35. g3 {[%emt 0:01:12]} Re4 {[%emt 0:00:04]} 36. Rb5 {[%emt 0:00:11]} Kg6 {[%emt 0:00:06]} 37. Kf2 {[%emt 0:01:34]} g4 {[%emt 0:00:03]} 38. Rc5 {[%emt 0:02:10]} Rd4 {[%emt 0:01:24]} 39. Rc2 {[%emt 0:06:14]} Re4 {[%emt 0:00:52]} 40. Rc5 {[%emt 0:01:03]} h5 {[%emt 0:00:15]} 41. Rb5 {[%emt 0:30:56]} Kf5 {[%emt 0:32:15]} 42. Rb7 {[%emt 0:00:26]} Kg6 {[%emt 0:00:39]} 43. Rb5 {[%emt 0:00:22]} Ra4 {[%emt 0:02:54]} 44. Rb2 {[%emt 0:05:21]} Kf5 {[%emt 0:01:25]} 45. Kg2 {[%emt 0:01:48]} Kxe5 {[%emt 0:00:23]} 46. Rb5+ {[%emt 0:00:43]} Ke4 {[%emt 0:00:37]} 47. Rxh5 {[%emt 0:01:42]} Ra2+ {[%emt 0:00:00]} 48. Kf1 {[%emt 0:00:00]} f5 {[%emt 0:00:00]} 49. Rh4 {[%emt 0:00:00]} Kf3 {[%emt 0:00:00]} 50. Ke1 {[%emt 0:00:00]} Ra8 {[%emt 0:00:00]} 51. Rh6 {[%emt 0:00:00]} Re8 {[%emt 0:00:00]} 52. Kd2 {[%emt 0:00:00]} e5 {[%emt 0:00:00]} 53. Rf6 {[%emt 0:00:00]} f4 {[%emt 0:00:00]} 54. Rc6 {[%emt 0:00:00]} e4 {[%emt 0:00:00]} 55. Rf6 {[%emt 0:00:00]} e3+ {[%emt 0:00:00]} 56. Ke1 {[%emt 0:00:00]} Re4 {[%emt 0:00:00]} 57. gxf4 {[%emt 0:02:28]} Ra4 {[%emt 0:00:00]} 58. Rd6 {[%emt 0:02:16]} Ra1+ {[%emt 0:00:00]} 59. Rd1 {[%emt 0:00:43]} Rxd1+ {[%emt 0:00:00]} 60. Kxd1 {[%emt 0:00:30]} Kf2 {[%emt 0:00:00]} 0-1

[Event "VII Cape Verde Championship 2023"]
[Site "Ponta do Sol"]
[Date "2023.12.05"]
[Round "3.3"]
[White "Mirulla, David"]
[Black "Vaz, Jose Carlos"]
[Result "1-0"]
[ECO "B28"]
[WhiteElo "1929"]
[BlackElo "1833"]
[Annotator "RC"]
[PlyCount "129"]
[EventDate "2023.11.30"]
[EventType "tourn"]
[EventCountry "KAP"]
[SourceTitle "playchess.com"]
[Source "ChessBase"]
[SourceQuality "1"]
[TimeControl "40/5400+30:1800+30"]

1. e4 {[%emt 0:00:05]} c5 {[%emt 0:01:52]} 2. Nf3 {[%emt 0:00:09]} Nc6 {[%emt 0:00:11]} 3. d4 {[%emt 0:00:10]} cxd4 {[%emt 0:00:26]} 4. Nxd4 {[%emt 0:00:09]} a6 {[%emt 0:00:10]} 5. c4 {[%emt 0:06:07]} g6 {[%emt 0:00:25]} 6. Nxc6 {[%emt 0:06:19]} bxc6 {[%emt 0:00:31]} 7. Qd4 {[%emt 0:00:42]} Nf6 {[%emt 0:01:47]} 8. e5 {[%emt 0:04:51]} Nh5 {[%emt 0:00:38]} 9. c5 {[%emt 0:11:35]} e6 {[%emt 0:01:52]} 10. g4 {[%emt 0:12:16]} Ng7 {[%emt 0:01:11]} 11. Bd3 {[%emt 0:01:03]} Qa5+ {[%emt 0:00:14]} 12. b4 {[%emt 0:00:25]} Qd8 {[%emt 0:00:40]} 13. a4 {[%emt 0:03:40]} Be7 {[%emt 0:00:17]} 14. Nc3 {[%emt 0:05:54]} f5 {[%emt 0:00:17]} 15. gxf5 {[%emt 0:02:21]} exf5 {[%emt 0:00:21]} 16. Bc4 {[%emt 0:01:52]} Ne6 {[%emt 0:00:14]} 17. Bxe6 {[%emt 0:01:45]} dxe6 {[%emt 0:00:10]} 18. Qxd8+ {[%emt 0:02:25]} Kxd8 {[%emt 0:00:15]} 19. Ba3 {[%emt 0:04:26]} Kc7 {[%emt 0:01:20]} 20. a5 {[%emt 0:02:28]} Bb7 {[%emt 0:00:20]} 21. Rd1 {[%emt 0:01:34]} Rad8 {[%emt 0:00:12]} 22. Ke2 {[%emt 0:00:14]} g5 {[%emt 0:01:00]} 23. Bc1 {[%emt 0:02:26]} Bc8 {[%emt 0:00:10]} 24. Rxd8 {[%emt 0:04:26]} Rxd8 {[%emt 0:00:48]} 25. Rd1 {[%emt 0:00:18]} Rg8 {[%emt 0:00:11]} 26. Na4 {[%emt 0:05:20]} Bd7 {[%emt 0:00:38]} 27. Nb6 {[%emt 0:00:56]} Be8 {[%emt 0:01:26]} 28. Kf1 {[%emt 0:00:42]} f4 {[%emt 0:01:32]} 29. f3 {[%emt 0:01:08]} h5 {[%emt 0:00:50]} 30. Kf2 {[%emt 0:02:54]} Rf8 {[%emt 0:00:44]} 31. Rd4 {[%emt 0:03:04]} Rf5 {[%emt 0:00:59]} 32. Nc4 {[%emt 0:00:54]} Bd7 {[%emt 0:01:23]} 33. h3 {[%emt 0:03:17]} Bf8 {[%emt 0:02:37]} 34. Re4 {[%emt 0:02:37]} Be7 {[%emt 0:02:16]} 35. h4 {[%emt 0:01:47]} g4 {[%emt 0:10:25]} 36. Rxf4 {[%emt 0:01:09]} Bxh4+ {[%emt 0:00:12]} 37. Kg2 {[%emt 0:00:27]} Rxf4 {[%emt 0:09:06]} 38. Bxf4 {[%emt 0:00:07]} Be8 {[%emt 0:01:25]} 39. fxg4 {[%emt 0:03:15]} hxg4 {[%emt 0:00:36]} 40. Bh6 {[%emt 0:01:05]} Bg6 {[%emt 0:00:21]} 41. Bd2 {[%emt 0:32:45]} Be4+ {[%emt 0:32:43]} 42. Kg1 {[%emt 0:00:18]} Bg3 {[%emt 0:00:45]} 43. Bc3 {[%emt 0:00:00]} Bf4 {[%emt 0:00:00]} 44. Nd6 {[%emt 0:00:00]} Bg6 {[%emt 0:00:00]} 45. Kg2 {[%emt 0:00:00]} Kd7 {[%emt 0:00:00]} 46. Nc4 {[%emt 0:00:00]} Be4+ {[%emt 0:00:00]} 47. Kg1 {[%emt 0:00:00]} g3 {[%emt 0:00:00]} 48. Bd2 {[%emt 0:00:00]} Bxd2 {[%emt 0:00:00]} 49. Nxd2 {[%emt 0:00:00]} Bd5 {[%emt 0:00:00]} 50. Nf1 {[%emt 0:00:00]} Ke7 {[%emt 0:00:00]} 51. Nxg3 {[%emt 0:00:00]} Kf7 {[%emt 0:00:00]} 52. Kf2 {[%emt 0:00:00]} Kg6 {[%emt 0:00:00]} 53. Ke3 {[%emt 0:00:00]} Kg5 {[%emt 0:00:00]} 54. Kd4 {[%emt 0:00:00]} Bf3 {[%emt 0:00:00]} 55. Nf1 {[%emt 0:00:00]} Kf4 {[%emt 0:00:00]} 56. Ne3 {[%emt 0:00:00]} Be2 {[%emt 0:00:00]} 57. Nc2 {[%emt 0:00:00]} Bf3 {[%emt 0:00:00]} 58. Na3 {[%emt 0:00:00]} Be2 {[%emt 0:00:00]} 59. Nb1 {[%emt 0:00:00]} Bf3 {[%emt 0:00:00]} 60. Nc3 {[%emt 0:00:00]} Bg2 {[%emt 0:00:00]} 61. Na4 {[%emt 0:00:00]} Bf1 {[%emt 0:00:00]} 62. Nb6 {[%emt 0:00:00]} Kf5 {[%emt 0:00:00]} 63. Nc8 {[%emt 0:00:04]} Kf4 {[%emt 0:00:00]} 64. Nd6 {[%emt 0:04:45]} Be2 {[%emt 0:00:00]} 65. b5 {[%emt 0:08:46]} 1-0

[Event "VII Cape Verde Championship 2023"]
[Site "Ponta do Sol"]
[Date "2023.12.05"]
[Round "3.4"]
[White "Ortega Amarelle, Mariano"]
[Black "Teixeira, Gil"]
[Result "1-0"]
[ECO "B07"]
[WhiteElo "2478"]
[BlackElo "1820"]
[Annotator "RC"]
[PlyCount "107"]
[EventDate "2023.11.30"]
[EventType "tourn"]
[EventCountry "KAP"]
[SourceTitle "playchess.com"]
[Source "ChessBase"]
[SourceQuality "1"]
[TimeControl "40/5400+30:1800+30"]

1. e4 {[%emt 0:00:10]} d6 {[%emt 0:00:37]} 2. d4 {[%emt 0:00:11]} Nf6 {[%emt 0:00:37]} 3. Nc3 {[%emt 0:00:09]} e6 {[%emt 0:00:38]} 4. f4 {[%emt 0:00:40]} Nbd7 {[%emt 0:01:10]} 5. Nf3 {[%emt 0:00:40]} Be7 {[%emt 0:00:46]} 6. Bd3 {[%emt 0:04:57]} c5 {[%emt 0:01:21]} 7. e5 {[%emt 0:03:49]} dxe5 {[%emt 0:02:28]} 8. dxe5 {[%emt 0:02:39]} Nd5 {[%emt 0:00:32]} 9. Nxd5 {[%emt 0:03:50]} exd5 {[%emt 0:00:41]} 10. c3 {[%emt 0:00:26]} a6 {[%emt 0:05:01]} 11. O-O {[%emt 0:00:52]} Nb6 {[%emt 0:01:40]} 12. f5 {[%emt 0:02:39]} Bd7 {[%emt 0:05:42]} 13. Qe1 {[%emt 0:13:57]} f6 {[%emt 0:03:27]} 14. exf6 {[%emt 0:04:21]} gxf6 {[%emt 0:00:36]} 15. Bh6 {[%emt 0:00:15]} Rg8 {[%emt 0:00:11]} 16. Ng5 {[%emt 0:05:56]} Qc7 {[%emt 0:02:31]} 17. Ne6 {[%emt 0:01:22]} Qc6 {[%emt 0:03:20]} 18. Ng7+ {[%emt 0:08:34]} Kd8 {[%emt 0:01:51]} 19. Ne6+ {[%emt 0:07:09]} Bxe6 {[%emt 0:03:55]} 20. Qxe6 {[%emt 0:01:32]} Qxe6 {[%emt 0:00:29]} 21. fxe6 {[%emt 0:00:06]} Kc7 {[%emt 0:01:27]} 22. Bxh7 {[%emt 0:01:54]} Rh8 {[%emt 0:00:43]} 23. Bf4+ {[%emt 0:00:09]} Kc6 {[%emt 0:00:38]} 24. Bc2 {[%emt 0:03:45]} Nc4 {[%emt 0:00:35]} 25. b3 {[%emt 0:02:45]} Ne5 {[%emt 0:02:29]} 26. c4 {[%emt 0:02:21]} d4 {[%emt 0:03:59]} 27. Be4+ {[%emt 0:03:13]} Kc7 {[%emt 0:01:36]} 28. Rae1 {[%emt 0:05:14]} Bd6 {[%emt 0:00:57]} 29. Bf5 {[%emt 0:09:44]} Rag8 {[%emt 0:03:10]} 30. Bg3 {[%emt 0:04:23]} Kd8 {[%emt 0:02:39]} 31. Be4 {[%emt 0:02:33]} Ke7 {[%emt 0:00:47]} 32. Bxb7 {[%emt 0:01:05]} Rxg3 {[%emt 0:01:16]} 33. hxg3 {[%emt 0:00:07]} Ng4 {[%emt 0:01:07]} 34. Re4 {[%emt 0:02:40]} Ne3 {[%emt 0:01:36]} 35. Rf3 {[%emt 0:00:40]} Be5 {[%emt 0:01:25]} 36. Bd5 {[%emt 0:00:53]} Kd6 {[%emt 0:01:12]} 37. Rh4 {[%emt 0:01:16]} Rxh4 {[%emt 0:04:37]} 38. gxh4 {[%emt 0:00:05]} f5 {[%emt 0:00:53]} 39. g3 {[%emt 0:00:37]} a5 {[%emt 0:01:43]} 40. h5 {[%emt 0:00:46]} Bg7 {[%emt 0:01:16]} 41. Kf2 {[%emt 0:30:30]} Bh6 {[%emt 0:30:30]} 42. Ke2 {[%emt 0:00:20]} Bg5 {[%emt 0:00:56]} 43. Kd3 {[%emt 0:02:09]} Ke7 {[%emt 0:38:56]} 44. Rf2 {[%emt 0:01:07]} Bh6 {[%emt 0:00:00]} 45. a3 {[%emt 0:00:00]} Kd6 {[%emt 0:00:00]} 46. b4 {[%emt 0:00:00]} axb4 {[%emt 0:00:00]} 47. axb4 {[%emt 0:00:00]} Bg5 {[%emt 0:00:00]} 48. bxc5+ {[%emt 0:00:00]} Kxc5 {[%emt 0:00:00]} 49. h6 {[%emt 0:00:00]} Kd6 {[%emt 0:00:00]} 50. h7 {[%emt 0:00:00]} Bf6 {[%emt 0:00:00]} 51. Ra2 {[%emt 0:00:00]} Ng4 {[%emt 0:00:00]} 52. Ra6+ {[%emt 0:00:00]} Ke5 {[%emt 0:00:00]} 53. e7 {[%emt 0:00:00]} Nf2+ {[%emt 0:00:00]} 54. Ke2 {[%emt 0:05:00]} 1-0

[Event "VII Cape Verde Championship 2023"]
[Site "Ponta do Sol"]
[Date "2023.12.05"]
[Round "3.5"]
[White "Silva, Bryan Jorge"]
[Black "Monteiro, Antonio David Cabral"]
[Result "0-1"]
[ECO "C00"]
[WhiteElo "1586"]
[BlackElo "1801"]
[Annotator "NA RC"]
[PlyCount "126"]
[EventDate "2023.11.30"]
[EventType "tourn"]
[EventCountry "KAP"]
[SourceTitle "playchess.com"]
[Source "ChessBase"]
[SourceQuality "1"]
[TimeControl "40/5400+30:1800+30"]

1. e4 {[%emt 0:00:07]} e6 {[%emt 0:00:37]} 2. d3 {[%emt 0:00:30]} d5 {[%emt 0:00:41]} 3. Nd2 {[%emt 0:00:11]} Nf6 {[%emt 0:01:54]} 4. e5 {[%emt 0:02:22]} Nfd7 {[%emt 0:00:11]} 5. d4 {[%emt 0:01:04]} c5 {[%emt 0:00:29]} 6. c3 {[%emt 0:00:18]} Nc6 {[%emt 0:00:19]} 7. Ngf3 {[%emt 0:01:26]} Qb6 {[%emt 0:03:11]} 8. Nb3 {[%emt 0:00:33]} c4 {[%emt 0:03:33]} 9. Nbd2 {[%emt 0:00:12]} Be7 {[%emt 0:01:03]} 10. g3 {[%emt 0:01:09]} O-O {[%emt 0:01:55]} 11. Bg2 {[%emt 0:00:13]} f6 {[%emt 0:03:20]} (11... Qc7 $11) 12. exf6 {[%emt 0:11:04]} Bxf6 {[%emt 0:10:12]} 13. O-O {[%emt 0:00:39]} Qd8 {[%emt 0:01:38]} 14. Qe2 {[%emt 0:00:56]} e5 {[%emt 0:00:47]} 15. dxe5 {[%emt 0:00:40]} Ndxe5 {[%emt 0:01:08]} 16. Nxe5 {[%emt 0:00:26]} Nxe5 {[%emt 0:00:44]} 17. Nf3 $1 {[%emt 0:04:15]} Bg4 {[%emt 0:05:00]} 18. Qe3 {[%emt 0:00:34]} (18. h3 $1 $11 {keeps the balance.} Nxf3+ 19. Bxf3 Bxf3 20. Qxf3) 18... Nxf3+ {[%emt 0:07:31]} 19. Bxf3 {[%emt 0:01:37]} d4 {[%emt 0:02:54]} 20. Qe4 {[%emt 0:01:58]} Bxf3 {[%emt 0:03:55]} 21. Qxf3 {[%emt 0:00:12]} Qd7 {[%emt 0:02:15]} ({Black should try} 21... d3 $17 22. Be3 Qd7) 22. Bd2 {[%emt 0:08:50]} ({White should play} 22. cxd4 $1 $15 Rad8 23. Be3) 22... d3 {[%emt 0:05:38]} 23. Qe4 {[%emt 0:02:14]} b5 {[%emt 0:00:57]} 24. Rfe1 {[%emt 0:06:26]} Rae8 {[%emt 0:00:46]} 25. Qg2 {[%emt 0:02:07]} Rxe1+ {[%emt 0:05:32]} 26. Rxe1 {[%emt 0:00:09]} Re8 {[%emt 0:00:14]} 27. Rxe8+ {[%emt 0:05:39]} Qxe8 {[%emt 0:00:08]} 28. Qf3 {[%emt 0:00:26]} h6 {[%emt 0:01:04]} 29. Qe3 {[%emt 0:01:17]} Qxe3 {[%emt 0:01:22]} 30. Bxe3 {[%emt 0:00:09]} b4 {[%emt 0:02:13]} 31. Bd2 {[%emt 0:00:30]} bxc3 {[%emt 0:01:20]} 32. bxc3 {[%emt 0:00:13]} Kf7 {[%emt 0:01:04]} 33. Kg2 {[%emt 0:01:56]} Ke6 {[%emt 0:00:30]} 34. f4 {[%emt 0:00:10]} h5 {[%emt 0:03:48]} 35. h4 {[%emt 0:06:58]} Kd5 {[%emt 0:01:59]} 36. Kf3 {[%emt 0:00:15]} Be7 {[%emt 0:00:56]} 37. a4 {[%emt 0:02:45]} Ba3 {[%emt 0:02:04]} 38. Ke3 {[%emt 0:11:11]} g6 {[%emt 0:01:50]} 39. Kf3 $19 {[%emt 0:08:47]} Ke6 {[%emt 0:00:49]} (39... Bc5 $142 40. Bc1 Kc6) 40. g4 $2 {[%emt 0:02:16]} (40. Ke4) 40... hxg4+ {[%emt 0:02:30]} 41. Kxg4 {[%emt 0:30:14]} Kf6 {[%emt 0:30:24]} 42. Be3 {[%emt 0:02:39]} Bb2 {[%emt 0:03:07]} 43. Bd2 {[%emt 0:00:12]} a6 {[%emt 0:00:53]} 44. f5 {[%emt 0:01:23]} gxf5+ {[%emt 0:00:24]} 45. Kf4 {[%emt 0:00:08]} Ba3 {[%emt 0:00:50]} 46. h5 {[%emt 0:02:06]} Bd6+ {[%emt 0:01:24]} 47. Kf3 {[%emt 0:00:08]} Bf8 {[%emt 0:02:05]} 48. Bf4 {[%emt 0:00:35]} Bc5 {[%emt 0:01:21]} 49. Bd2 {[%emt 0:00:35]} Bd6 {[%emt 0:00:33]} 50. Be3 {[%emt 0:03:49]} Be5 {[%emt 0:01:10]} 51. Bd2 {[%emt 0:00:33]} Ke6 {[%emt 0:00:32]} (51... a5 $142 52. Bh6 Bxc3) 52. h6 {[%emt 0:02:48]} Kf6 {[%emt 0:01:23]} 53. Ke3 {[%emt 0:01:25]} Kg6 {[%emt 0:00:47]} 54. Kf3 {[%emt 0:00:10]} Bd6 {[%emt 0:02:17]} 55. Ke3 {[%emt 0:02:32]} Bf8 {[%emt 0:00:26]} ({Inferior is} 55... Kxh6 56. Kd4+ f4 57. Kxc4 $11) 56. Kd4 {[%emt 0:00:12]} Bxh6 {[%emt 0:00:36]} 57. Kxc4 {[%emt 0:00:44]} Bxd2 {[%emt 0:00:18]} 58. Kxd3 {[%emt 0:00:05]} Be1 {[%emt 0:00:46]} 59. c4 {[%emt 0:00:21]} f4 {[%emt 0:00:44]} 60. c5 {[%emt 0:00:16]} Kf6 {[%emt 0:00:30]} 61. Ke4 {[%emt 0:00:43]} Bd2 {[%emt 0:00:31]} 62. Kd3 {[%emt 0:00:55]} Be3 {[%emt 0:00:38]} 63. c6 {[%emt 0:00:07]} Ke6 {[%emt 0:00:29]} 0-1